fUST/lending_fUST_20240201
["ID","MTS","AMOUNT","RATE_DAILY","PERIOD"]
[313101907,1706745041280,-500.0,0.00021051,2]
[313101908,1706745041289,-500.0,0.00021051,2]
[313101909,1706745041298,-500.0,0.00021051,2]
[313101910,1706745041307,-500.0,0.00021051,2]
[313101911,1706745041316,-448.43822035,0.00021051,2]
[313101912,1706745041325,-500.0,0.00021051,2]
[313101913,1706745041334,-617.9427996,0.00021051,2]
[313101914,1706745041343,-500.0,0.00021051,2]
[313101915,1706745041352,-500.0,0.00021051,2]
[313101916,1706745041361,-500.0,0.00021051,2]
[313101917,1706745041370,-500.0,0.00021051,2]
[313101918,1706745041379,-500.0,0.00021051,2]
[313101919,1706745041388,-500.0,0.00021051,2]
[313101920,1706745041398,-500.0,0.00021051,2]
[313101921,1706745041407,-500.0,0.00021051,2]
[313101922,1706745041416,-1896.04857848,0.00021052,2]
[313101923,1706745041425,-5000.0,0.00021052,2]
[313101924,1706745041434,-21695.31626046,0.00021052,2]
[313101925,1706745041443,-5000.0,0.00021052,2]
[313101926,1706745041453,-5000.0,0.00021052,2]
[313101927,1706745041462,-5000.0,0.00021052,2]
[313101928,1706745041471,-5000.0,0.00021052,2]
[313101929,1706745041480,-5000.0,0.00021052,2]
[313101930,1706745041489,-5000.0,0.00021052,2]
[313101931,1706745041499,-5000.0,0.00021052,2]
[313101932,1706745041508,-5000.0,0.00021052,2]
[313101933,1706745041517,-14074.55990046,0.00021052,2]
[313101934,1706745041526,-5000.0,0.00021052,2]
[313101935,1706745041535,-5000.0,0.00021052,2]
[313101936,1706745041544,-5000.0,0.00021052,2]
[313101937,1706745041554,-5000.0,0.00021052,2]
[313101938,1706745041564,-5000.0,0.00021052,2]
[313101939,1706745041572,-5000.0,0.00021052,2]
[313101940,1706745041582,-5000.0,0.00021052,2]
[313101941,1706745041591,-5000.0,0.00021052,2]
[313101942,1706745041600,-5000.0,0.00021052,2]
[313101943,1706745041609,-685.18351365,0.00021052,2]
[313101945,1706745041619,-1828.98396681,0.00021052,2]
[313101947,1706745041628,-156.18591647,0.00021052,2]
[313101948,1706745041637,-29413.65271004,0.00021052,2]
[313101949,1706745041647,-300.0,0.00021052,2]
[313101950,1706745041656,-6136.97416911,0.00021052,2]
[313101951,1706745041665,-2087.88489741,0.00021052,2]
[313101952,1706745041674,-151.0,0.00021052,2]
[313101953,1706745041684,-151.0,0.00021052,2]
[313101954,1706745041693,-151.0,0.00021052,2]
[313101956,1706745041702,-158.926865,0.00021052,2]
[313101957,1706745041711,-589.5488429,0.00021052,2]
[313101958,1706745041721,-3250.00355319,0.00021052,2]
[313101959,1706745041730,-5000.0,0.00021052,2]
[313101960,1706745041738,-5000.0,0.00021052,2]
[313101961,1706745041747,-5000.0,0.00021052,2]
[313101963,1706745041756,-5000.0,0.00021052,2]
[313101964,1706745041765,-5000.0,0.00021052,2]
[313101965,1706745041775,-5000.0,0.00021052,2]
[313101966,1706745041783,-151.0,0.00021052,2]
[313101967,1706745041792,-151.0,0.00021052,2]
[313101968,1706745041803,-151.0,0.00021052,2]
[313101969,1706745041812,-151.0,0.00021052,2]
[313101970,1706745041826,-151.0,0.00021052,2]
[313101971,1706745041835,-151.0,0.00021052,2]
[313101973,1706745041844,-605.305833,0.00021052,2]
[313101974,1706745041853,-605.305833,0.00021052,2]
[313101975,1706745041863,-605.305833,0.00021052,2]
[313101976,1706745041872,-605.305833,0.00021052,2]
[313101977,1706745041880,-605.305833,0.00021052,2]
[313101978,1706745041889,-605.305833,0.00021052,2]
[313101979,1706745041900,-605.305833,0.00021052,2]
[313101980,1706745041910,-605.305833,0.00021052,2]
[313101981,1706745041919,-605.305833,0.00021052,2]
[313101982,1706745041928,-605.305833,0.00021052,2]
[313101983,1706745041938,-605.305833,0.00021052,2]
[313101984,1706745041947,-605.305833,0.00021052,2]
[313101985,1706745041956,-605.305833,0.00021052,2]
[313101986,1706745041965,-605.305833,0.00021052,2]
[313101987,1706745041974,-605.305833,0.00021052,2]
[313101988,1706745041983,-605.305833,0.00021052,2]
[313101989,1706745042070,-12735.7092631,0.00021052,2]
[313101990,1706745042079,-151.0,0.00021052,2]
[313101991,1706745042087,-151.0,0.00021052,2]
[313101992,1706745042096,-151.0,0.00021052,2]
[313101993,1706745042105,-283.142045,0.00021052,2]
[313101994,1706745042114,-50000.0,0.00021052,2]
[313101995,1706745042123,-5000.0,0.00021052,2]
[313101996,1706745042132,-5000.0,0.00021052,2]
[313101997,1706745042141,-5000.0,0.00021052,2]
[313101998,1706745042150,-5000.0,0.00021052,2]
[313101999,1706745042158,-5000.0,0.00021052,2]
[313102000,1706745042167,-5000.0,0.00021052,2]
[313102001,1706745042176,-684.363039,0.00021052,2]
[313102002,1706745042185,-684.363039,0.00021052,2]
[313102003,1706745042194,-684.363039,0.00021052,2]
[313102004,1706745042203,-684.363039,0.00021052,2]
[313102005,1706745042211,-684.363039,0.00021052,2]
[313102006,1706745042220,-684.363039,0.00021052,2]
[313102007,1706745042229,-684.363039,0.00021052,2]
[313102008,1706745042238,-684.363039,0.00021052,2]
[313102009,1706745042247,-684.363039,0.00021052,2]
[313102010,1706745042256,-684.363039,0.00021052,2]
[313102011,1706745042266,-684.363039,0.00021052,2]
[313102012,1706745042275,-684.363039,0.00021052,2]
[313102013,1706745042284,-684.363039,0.00021052,2]
[313102014,1706745042293,-684.363039,0.00021052,2]
[313102015,1706745042304,-684.363039,0.00021052,2]
[313102016,1706745042313,-684.363039,0.00021052,2]
[313102017,1706745042322,-5000.0,0.00021052,2]
[313102018,1706745042330,-5000.0,0.00021052,2]
[313102019,1706745042340,-5000.0,0.00021052,2]
[313102020,1706745042349,-5000.0,0.00021052,2]
[313102021,1706745042359,-5000.0,0.00021052,2]
[313102022,1706745042368,-6032.397614,0.00021052,2]
[313102023,1706745042378,-6032.397614,0.00021052,2]
[313102024,1706745042387,-6032.397614,0.00021052,2]
[313102025,1706745042396,-6032.397614,0.00021052,2]
[313102026,1706745042405,-6032.397614,0.00021052,2]
[313102027,1706745042414,-6032.397614,0.00021052,2]
[313102028,1706745042423,-6032.397614,0.00021052,2]
[313102029,1706745042432,-6032.397614,0.00021052,2]
[313102030,1706745042441,-6032.397614,0.00021052,2]
[313102031,1706745042450,-6032.397614,0.00021052,2]
[313102032,1706745042459,-6032.397614,0.00021052,2]
[313102033,1706745042468,-6032.397614,0.00021052,2]
[313102034,1706745042477,-6032.397614,0.00021052,2]
[313102035,1706745042486,-6032.397614,0.00021052,2]
[313102036,1706745042495,-289.90306857,0.00021052,2]
[313102037,1706745042504,-155.98549173,0.00021052,2]
[313102038,1706745042513,-5000.0,0.00021052,2]
[313102039,1706745042522,-5000.0,0.00021052,2]
[313102040,1706745042531,-5000.0,0.00021052,2]
[313102041,1706745042541,-5000.0,0.00021052,2]
[313102042,1706745042551,-5000.0,0.00021052,2]
[313102043,1706745042560,-5000.0,0.00021052,2]
[313102044,1706745042569,-5000.0,0.00021052,2]
[313102045,1706745042579,-5000.0,0.00021052,2]
[313102046,1706745042588,-5000.0,0.00021052,2]
[313102047,1706745042597,-5000.0,0.00021052,2]
[313102048,1706745042607,-151.0,0.00021052,2]
[313102049,1706745042616,-151.0,0.00021052,2]
[313102050,1706745042625,-151.0,0.00021052,2]
[313102051,1706745042634,-151.0,0.00021052,2]
[313102052,1706745042643,-151.0,0.00021052,2]
[313102053,1706745042652,-151.0,0.00021052,2]
[313102054,1706745042661,-151.0,0.00021052,2]
[313102055,1706745042670,-259.0,0.00021052,2]
[313102056,1706745042679,-12406.21584052,0.00021052,2]
[313102057,1706745042689,-1795.84629429,0.00021053,2]
[313102058,1706745042698,-1095.74,0.00021063,2]
[313102059,1706745042706,-6032.397614,0.00021063,2]
[313102060,1706745042716,-6032.397614,0.00021063,2]
[313102061,1706745042725,-4283.42,0.00021063,2]
[313102062,1706745042734,-1895.6,0.00021063,2]
[313102063,1706745042744,-500.0,0.00021063,2]
[313102064,1706745042753,-500.0,0.00021063,2]
[313102065,1706745042763,-1177.3,0.00021063,2]
[313102066,1706745042773,-500.0,0.00021063,2]
[313102067,1706745042782,-500.0,0.00021063,2]
[313102068,1706745042791,-500.0,0.00021064,2]
[313102069,1706745042803,-912.57,0.00021064,2]
[313102070,1706745042814,-500.0,0.00021064,2]
[313102071,1706745042825,-500.0,0.00021064,2]
[313102072,1706745042834,-500.0,0.00021064,2]
[313102073,1706745042844,-665.87,0.00021064,2]
[313102074,1706745042853,-500.0,0.00021064,2]
[313102075,1706745042863,-313.03056003,0.00021064,2]
[313102076,1706745042872,-500.0,0.00021064,2]
[313102077,1706745042881,-506.87,0.00021064,2]
[313102078,1706745042890,-500.0,0.00021064,2]
[313102079,1706745042900,-632.15,0.00021064,2]
[313102080,1706745042909,-584.09,0.00021064,2]
[313102081,1706745042919,-500.0,0.00021064,2]
[313102082,1706745042930,-2355.89,0.00021064,2]
[313102083,1706745042940,-919.9,0.00021064,2]
[313102084,1706745042950,-500.0,0.00021064,2]
[313102085,1706745042961,-3667.71,0.00021064,2]
[313102086,1706745042970,-500.0,0.00021064,2]
[313102087,1706745042979,-938.72,0.00021064,2]
[313102088,1706745042988,-801.97,0.00021064,2]
[313102089,1706745042996,-758.51,0.00021064,2]
[313102090,1706745043006,-500.0,0.00021064,2]
[313102091,1706745043015,-10227.00128964,0.00021094,2]
[313102092,1706745043024,-605.305833,0.00021094,2]
[313102093,1706745043033,-605.305833,0.00021094,2]
[313102094,1706745043042,-684.363039,0.00021094,2]
[313102095,1706745043052,-684.363039,0.00021094,2]
[313102096,1706745043061,-153.0000002,0.00021096,2]
[313102097,1706745043070,-402.2141548,0.00021096,2]
[313102098,1706745043079,-458.9999997,0.00021096,2]
[313102099,1706745043089,-1095.74,0.00021337,2]
[313102100,1706745043098,-6032.397614,0.00021337,2]
[313102101,1706745043109,-6032.397614,0.00021337,2]
[313102102,1706745043118,-4283.42,0.00021337,2]
[313102103,1706745043127,-1895.6,0.00021337,2]
[313102104,1706745043136,-500.0,0.00021337,2]
[313102105,1706745043145,-500.0,0.00021337,2]
[313102106,1706745043154,-1177.3,0.00021337,2]
[313102107,1706745043164,-500.0,0.00021337,2]
[313102108,1706745043175,-500.0,0.00021337,2]
[313102109,1706745043185,-500.0,0.00021338,2]
[313102110,1706745043194,-912.57,0.00021338,2]
[313102111,1706745043203,-500.0,0.00021338,2]
[313102112,1706745043212,-500.0,0.00021338,2]
[313102113,1706745043221,-500.0,0.00021338,2]
[313102114,1706745043229,-665.87,0.00021338,2]
[313102116,1706745043237,-500.0,0.00021338,2]
[313102117,1706745043246,-500.0,0.00021338,2]
[313102118,1706745043255,-506.87,0.00021338,2]
[313102119,1706745043264,-500.0,0.00021338,2]
[313102120,1706745043273,-632.15,0.00021338,2]
[313102121,1706745043282,-584.09,0.00021338,2]
[313102122,1706745043291,-500.0,0.00021338,2]
[313102123,1706745043302,-2355.89,0.00021338,2]
[313102124,1706745043311,-919.9,0.00021338,2]
[313102125,1706745043321,-649.93966104,0.00021338,2]
[313102126,1706745043330,-3667.71,0.00021338,2]
[313102127,1706745043339,-500.0,0.00021338,2]
[313102128,1706745043348,-938.72,0.00021338,2]
[313102129,1706745043357,-801.97,0.00021338,2]
[313102130,1706745043366,-758.51,0.00021338,2]
[313102131,1706745043375,-500.0,0.00021338,2]
[313102132,1706745043384,-155.04862299,0.00021367,2]
[313102133,1706745043393,-156.2311328,0.0002137,2]
[313102134,1706745043402,-1095.74,0.00021611,2]
[313102135,1706745043411,-4283.42,0.00021611,2]
[313102136,1706745043420,-1895.6,0.00021611,2]
[313102137,1706745043429,-500.0,0.00021611,2]
[313102138,1706745043439,-500.0,0.00021611,2]
[313102139,1706745043448,-1177.3,0.00021611,2]
[313102140,1706745043458,-500.0,0.00021611,2]
[313102141,1706745043467,-500.0,0.00021611,2]
[313102142,1706745043476,-500.0,0.00021612,2]
[313102143,1706745043485,-912.57,0.00021612,2]
[313102144,1706745043493,-500.0,0.00021612,2]
[313102146,1706745043502,-500.0,0.00021612,2]
[313102148,1706745043511,-605.305833,0.00021612,2]
[313102149,1706745043520,-605.305829,0.00021612,2]
[313102150,1706745043529,-500.0,0.00021612,2]
[313102151,1706745043538,-665.87,0.00021612,2]
[313102152,1706745043548,-500.0,0.00021612,2]
[313102154,1706745043557,-500.0,0.00021612,2]
[313102156,1706745043567,-506.87,0.00021612,2]
[313102157,1706745043575,-500.0,0.00021612,2]
[313102158,1706745043585,-632.15,0.00021612,2]
[313102159,1706745043595,-584.09,0.00021612,2]
[313102160,1706745043603,-684.363039,0.00021612,2]
[313102161,1706745043613,-684.363043,0.00021612,2]
[313102162,1706745043622,-6032.397614,0.00021612,2]
[313102163,1706745043631,-6032.397608,0.00021612,2]
[313102164,1706745043640,-500.0,0.00021612,2]
[313102165,1706745043649,-2355.89,0.00021612,2]
[313102166,1706745043658,-919.9,0.00021612,2]
[313102167,1706745043668,-3667.71,0.00021612,2]
[313102168,1706745043677,-500.0,0.00021612,2]
[313102169,1706745043686,-91.30987133,0.00021612,2]
[313102170,1706745043902,-5000.0,0.00021052,2]
[313102171,1706745043912,-847.41012867,0.00021612,2]
[313102172,1706745043921,-801.97,0.00021612,2]
[313102173,1706745043930,-758.51,0.00021612,2]
[313102174,1706745043939,-500.0,0.00021612,2]
[313102175,1706745043948,-303.48339143,0.000217,2]
[313102176,1706745043957,-3000.0,0.000218,2]
[313102177,1706745043966,-156.69992293,0.0002181,2]
[313102178,1706745043975,-180.06935571,0.0002181,2]
[313102179,1706745043985,-151.0,0.00021818,2]
[313102180,1706745043994,-2343.69375946,0.00021877,2]
[313102181,1706745044003,-1095.74,0.00021885,2]
[313102182,1706745044012,-4283.42,0.00021885,2]
[313102183,1706745044022,-1895.6,0.00021885,2]
[313102184,1706745044030,-500.0,0.00021885,2]
[313102185,1706745044039,-500.0,0.00021885,2]
[313102186,1706745044049,-1177.3,0.00021885,2]
[313102187,1706745044058,-500.0,0.00021885,2]
[313102188,1706745044067,-500.0,0.00021885,2]
[313102189,1706745044076,-500.0,0.00021886,2]
[313102190,1706745044085,-912.57,0.00021886,2]
[313102191,1706745044176,-500.0,0.00021886,2]
[313102192,1706745044186,-500.0,0.00021886,2]
[313102193,1706745044196,-500.0,0.00021886,2]
[313102194,1706745044206,-665.87,0.00021886,2]
[313102195,1706745044215,-500.0,0.00021886,2]
[313102196,1706745044224,-506.87,0.00021886,2]
[313102197,1706745044233,-500.0,0.00021886,2]
[313102198,1706745044243,-632.15,0.00021886,2]
[313102199,1706745044252,-584.09,0.00021886,2]
[313102200,1706745044261,-500.0,0.00021886,2]
[313102201,1706745044271,-2355.89,0.00021886,2]
[313102202,1706745044280,-919.9,0.00021886,2]
[313102203,1706745044289,-3667.71,0.00021886,2]
[313102204,1706745044299,-500.0,0.00021886,2]
[313102205,1706745044309,-938.72,0.00021886,2]
[313102206,1706745044319,-801.97,0.00021886,2]
[313102207,1706745044329,-758.51,0.00021886,2]
[313102208,1706745044338,-500.0,0.00021886,2]
[313102209,1706745044349,-155.03409384,0.00021915,2]
[313102210,1706745044358,-1000.0,0.00021917,2]
[313102211,1706745044367,-975.44009589,0.00021917,2]
[313102212,1706745044376,-166.666666,0.00021918,2]
[313102213,1706745044386,-400.96937201,0.00021918,2]
[313102214,1706745044395,-153.0,0.00021918,2]
[313102215,1706745044405,-153.0,0.00021918,2]
[313102216,1706745044414,-308.4421415,0.00021918,2]
[313102217,1706745044422,-199.6142226,0.00021918,2]
[313102218,1706745044431,-153.0,0.00021918,2]
[313102219,1706745044439,-153.0,0.00021918,2]
[313102220,1706745044448,-199.6142226,0.00021918,2]
[313102221,1706745044458,-153.0,0.00021918,2]
[313102222,1706745044466,-153.0,0.00021918,2]
[313102223,1706745044475,-199.6142226,0.00021918,2]
[313102224,1706745044484,-153.0,0.00021918,2]
[313102225,1706745044493,-153.0,0.00021918,2]
[313102226,1706745044502,-153.0,0.00021918,2]
[313102227,1706745044510,-153.0,0.00021918,2]
[313102228,1706745044519,-153.0,0.00021918,2]
[313102229,1706745044528,-3975.13505251,0.00022,2]
[313102230,1706745044538,-2037.54507979,0.00022,2]
[313102231,1706745044547,-154.9690062,0.00022,2]
[313102232,1706745044559,-426.66199522,0.00022,2]
[313102233,1706745044568,-2000.0,0.00022,2]
[313102234,1706745044577,-440.17460025,0.00022,2]
[313102235,1706745044587,-155.22119217,0.00022,2]
[313102236,1706745044596,-1650.19411677,0.00022,2]
[313102237,1706745044605,-621.56241516,0.00022,2]
[313102238,1706745044614,-391.48234256,0.00022,2]
[313102239,1706745044623,-1111.02241216,0.00022,2]
[313102240,1706745044632,-1095.74,0.00022159,2]
[313102241,1706745044641,-4283.42,0.00022159,2]
[313102242,1706745044650,-1895.6,0.00022159,2]
[313102243,1706745044659,-500.0,0.00022159,2]
[313102244,1706745044667,-500.0,0.00022159,2]
[313102245,1706745044676,-1177.3,0.00022159,2]
[313102246,1706745044686,-500.0,0.00022159,2]
[313102247,1706745044695,-500.0,0.00022159,2]
[313102248,1706745044704,-500.0,0.0002216,2]
[313102249,1706745044713,-912.57,0.0002216,2]
[313102250,1706745044722,-500.0,0.0002216,2]
[313102251,1706745044731,-500.0,0.0002216,2]
[313102252,1706745044740,-500.0,0.0002216,2]
[313102253,1706745044749,-665.87,0.0002216,2]
[313102254,1706745044759,-500.0,0.0002216,2]
[313102255,1706745044768,-506.87,0.0002216,2]
[313102256,1706745044777,-500.0,0.0002216,2]
[313102257,1706745044786,-632.15,0.0002216,2]
[313102258,1706745044796,-584.09,0.0002216,2]
[313102259,1706745044806,-500.0,0.0002216,2]
[313102260,1706745044815,-2355.89,0.0002216,2]
[313102261,1706745044828,-919.9,0.0002216,2]
[313102262,1706745044836,-3667.71,0.0002216,2]
[313102263,1706745044845,-500.0,0.0002216,2]
[313102264,1706745044854,-938.72,0.0002216,2]
[313102265,1706745044864,-801.97,0.0002216,2]
[313102266,1706745044873,-758.51,0.0002216,2]
[313102267,1706745044883,-500.0,0.0002216,2]
[313102268,1706745044893,-7872.90007183,0.000222,2]
[313102269,1706745044902,-166.666666,0.00022431,2]
[313102270,1706745044912,-1095.74,0.00022433,2]
[313102271,1706745044922,-4283.42,0.00022433,2]
[313102272,1706745044931,-1895.6,0.00022433,2]
[313102273,1706745044940,-500.0,0.00022433,2]
[313102274,1706745044949,-500.0,0.00022433,2]
[313102275,1706745044958,-1177.3,0.00022433,2]
[313102276,1706745044967,-500.0,0.00022433,2]
[313102277,1706745044976,-500.0,0.00022433,2]
[313102278,1706745044988,-500.0,0.00022434,2]
[313102279,1706745044998,-912.57,0.00022434,2]
[313102280,1706745045008,-500.0,0.00022434,2]
[313102281,1706745045017,-500.0,0.00022434,2]
[313102282,1706745045025,-500.0,0.00022434,2]
[313102283,1706745045037,-665.87,0.00022434,2]
[313102284,1706745045049,-500.0,0.00022434,2]
[313102285,1706745045058,-506.87,0.00022434,2]
[313102286,1706745045067,-500.0,0.00022434,2]
[313102287,1706745045077,-632.15,0.00022434,2]
[313102288,1706745045086,-584.09,0.00022434,2]
[313102289,1706745045095,-500.0,0.00022434,2]
[313102290,1706745045104,-2355.89,0.00022434,2]
[313102291,1706745045114,-919.9,0.00022434,2]
[313102292,1706745045124,-3667.71,0.00022434,2]
[313102293,1706745045134,-500.0,0.00022434,2]
[313102294,1706745045143,-938.72,0.00022434,2]
[313102295,1706745045152,-801.97,0.00022434,2]
[313102296,1706745045161,-758.51,0.00022434,2]
[313102297,1706745045169,-500.0,0.00022434,2]
[313102298,1706745045178,-2618.40467859,0.00022474,2]
[313102299,1706745045187,-2618.40467859,0.00022474,2]
[313102300,1706745045196,-2618.40467859,0.00022474,2]
[313102301,1706745045205,-2618.40467859,0.00022474,2]
[313102302,1706745045214,-2618.40467859,0.00022474,2]
[313102303,1706745045223,-2618.40467859,0.00022474,2]
[313102304,1706745045232,-2618.40467859,0.00022474,2]
[313102305,1706745045241,-2618.40467859,0.00022474,2]
[313102306,1706745045250,-2618.40467859,0.00022474,2]
[313102307,1706745045258,-2618.40467859,0.00022474,2]
[313102308,1706745045267,-151.0,0.00022587,2]
[313102309,1706745045276,-1095.74,0.00022707,2]
[313102310,1706745045285,-4283.42,0.00022707,2]
[313102311,1706745045294,-1895.6,0.00022707,2]
[313102312,1706745045303,-201.73431584,0.00022707,2]
[313102313,1706745045312,-122.82792849,0.00022707,2]
[313102317,1706745046756,-151.0,0.00021052,2]
[313102319,1706745046766,-1392.47,0.00021876,3]
[313102321,1706745046776,-377.17207151,0.00022707,2]
[313102323,1706745046786,-565.00044129,0.00022707,2]
[313102470,1706746231785,-273.02300698,0.00018731,2]
[313102472,1706746231796,-829.902211,0.00018732,2]
[313102474,1706746231806,-295.35270881,0.00018732,2]
[313102476,1706746231815,-244.197801,0.00018741,2]
[313102478,1706746231825,-167.633153,0.00019178,2]
[313102481,1706746231834,-500.0,0.00019693,2]
[313102483,1706746231844,-500.0,0.00019693,2]
[313102485,1706746231853,-187.62398123,0.00019693,2]
[313102486,1706746231863,-500.0,0.00019693,2]
[313102488,1706746231872,-500.0,0.00019693,2]
[313102490,1706746231882,-542.32133494,0.00019693,2]
[313102492,1706746231891,-500.0,0.00019693,2]
[313102494,1706746231901,-500.0,0.00019693,2]
[313102496,1706746231910,-586.39,0.00019693,2]
[313102498,1706746231919,-500.0,0.00019693,2]
[313102500,1706746231929,-155.01860223,0.00019897,2]
[313102502,1706746231938,-2725.75698387,0.000199,2]
[313102504,1706746231947,-158.56416614,0.000199,2]
[313102506,1706746231957,-500.0,0.00019966,2]
[313102508,1706746231966,-500.0,0.00019966,2]
[313102510,1706746231978,-500.0,0.00019966,2]
[313102512,1706746231988,-500.0,0.00019966,2]
[313102514,1706746231998,-500.0,0.00019966,2]
[313102516,1706746232008,-500.0,0.00019966,2]
[313102518,1706746232018,-500.0,0.00019966,2]
[313102520,1706746232028,-500.0,0.00019966,2]
[313102521,1706746232037,-500.0,0.00019966,2]
[313102522,1706746232046,-500.0,0.00019966,2]
[313102523,1706746232056,-500.0,0.00019966,2]
[313102524,1706746232176,-857.65,0.00019966,2]
[313102525,1706746232210,-500.0,0.00019966,2]
[313102526,1706746232220,-500.0,0.00019966,2]
[313102527,1706746232229,-500.0,0.00019966,2]
[313102528,1706746232239,-500.0,0.00019966,2]
[313102529,1706746232248,-2784.22,0.00019966,2]
[313102530,1706746232257,-1267.35,0.00019966,2]
[313102531,1706746232266,-636.27,0.00019966,2]
[313102532,1706746232275,-500.0,0.00019966,2]
[313102533,1706746232286,-790.76,0.00019966,2]
[313102534,1706746232296,-524.63,0.00019966,2]
[313102535,1706746232305,-500.0,0.00019966,2]
[313102536,1706746232314,-500.0,0.00019966,2]
[313102537,1706746232323,-500.0,0.00019966,2]
[313102538,1706746232332,-649.29,0.00019966,2]
[313102539,1706746232341,-500.0,0.00019966,2]
[313102540,1706746232349,-554.69,0.00019966,2]
[313102541,1706746232358,-500.0,0.00019966,2]
[313102542,1706746232367,-500.0,0.00019967,2]
[313102543,1706746232376,-500.0,0.00019967,2]
[313102544,1706746232385,-500.0,0.00019967,2]
[313102545,1706746232394,-500.0,0.00019967,2]
[313102546,1706746232403,-586.39,0.00019967,2]
[313102547,1706746232412,-500.0,0.00019967,2]
[313102548,1706746232421,-3124.93,0.00019989,3]
[313102549,1706746232430,-4356.89,0.00019989,3]
[313102550,1706746232439,-3630.74,0.00019989,3]
[313102551,1706746232448,-5228.27,0.0001999,3]
[313102552,1706746232456,-500.0,0.00019997,2]
[313102553,1706746232465,-155.01395126,0.00019997,2]
[313102554,1706746232475,-500.0,0.00019997,2]
[313102555,1706746232485,-500.0,0.00019997,2]
[313102556,1706746232494,-1629.49,0.00019997,2]
[313102557,1706746232503,-500.0,0.00019997,2]
[313102558,1706746232512,-2536.83,0.00019997,2]
[313102559,1706746232521,-500.0,0.00019997,2]
[313102560,1706746232530,-309.98450155,0.00019997,2]
[313102561,1706746232539,-4803.4914738,0.00019997,2]
[313102562,1706746232548,-647.31121946,0.00019998,2]
[313102563,1706746232557,-309.98450155,0.00019998,2]
[313102564,1706746232566,-302.30586902,0.00019999,2]
[313102565,1706746232580,-17944.14608496,0.00019999,2]
[313102935,1706746241012,-500.0,0.00019966,2]
[313102937,1706746241022,-1943.369042,0.00019999,2]
[313102939,1706746241032,-44380.68568654,0.0002,2]
[313102941,1706746241041,-1200.08348294,0.0002,2]
[313102943,1706746241051,-679.86163762,0.0002,2]
[313102945,1706746241061,-286.80419765,0.0002,2]
[313102947,1706746241070,-155.07130514,0.0002,2]
[313102949,1706746241079,-155.06510415,0.0002,2]
[313102951,1706746241089,-323.48853251,0.0002,2]
[313102953,1706746241098,-155.0,0.0002,2]
[313102955,1706746241107,-500.0,0.0002024,2]
[313102957,1706746241116,-500.0,0.0002024,2]
[313102959,1706746241125,-470.80891718,0.0002024,2]
[313102961,1706746241135,-500.0,0.0002024,2]
[313102963,1706746241145,-500.0,0.0002024,2]
[313102965,1706746241154,-500.0,0.0002024,2]
[313102967,1706746241163,-500.0,0.0002024,2]
[313102969,1706746241174,-857.65,0.0002024,2]
[313102971,1706746241183,-500.0,0.0002024,2]
[313102973,1706746241193,-500.0,0.0002024,2]
[313102975,1706746241207,-500.0,0.0002024,2]
[313102977,1706746241216,-500.0,0.0002024,2]
[313102979,1706746241225,-2784.22,0.0002024,2]
[313102981,1706746241234,-1267.35,0.0002024,2]
[313102983,1706746241244,-636.27,0.0002024,2]
[313102985,1706746241255,-500.0,0.0002024,2]
[313102987,1706746241263,-790.76,0.0002024,2]
[313102989,1706746241273,-524.63,0.0002024,2]